fUST/lending_fUST_20240814
["ID","MTS","AMOUNT","RATE_DAILY","PERIOD"]
[334802775,1723597847426,-262.954262,0.00013654,2]
[334802776,1723597847436,-171.399496,0.00013654,2]
[334802777,1723597847446,-171.399496,0.00013654,2]
[334802778,1723597847455,-151.0,0.00013654,2]
[334802779,1723597847464,-151.0,0.00013654,2]
[334802780,1723597847474,-151.0,0.00013654,2]
[334802781,1723597847483,-151.0,0.00013654,2]
[334802782,1723597847492,-194.330772,0.00013654,2]
[334802783,1723597847501,-194.330772,0.00013654,2]
[334802784,1723597847510,-338.912318,0.00013654,2]
[334802785,1723597847519,-338.912318,0.00013654,2]
[334802786,1723597847528,-151.0,0.00013654,2]
[334802787,1723597847539,-151.0,0.00013654,2]
[334802788,1723597847548,-300.801285,0.00013654,2]
[334802789,1723597847557,-300.801285,0.00013654,2]
[334802790,1723597847566,-300.801285,0.00013654,2]
[334802791,1723597847575,-300.801285,0.00013654,2]
[334802792,1723597847585,-151.0,0.00013654,2]
[334802793,1723597847595,-151.0,0.00013654,2]
[334802794,1723597847604,-983.630623,0.00013654,2]
[334802795,1723597847614,-983.630623,0.00013654,2]
[334802796,1723597847623,-305.130024,0.00013654,2]
[334802797,1723597847632,-305.130024,0.00013654,2]
[334802798,1723597847641,-305.130024,0.00013654,2]
[334802799,1723597847650,-305.130024,0.00013654,2]
[334802800,1723597847660,-151.0,0.00013654,2]
[334802801,1723597847669,-3827.331136,0.00013654,2]
[334802802,1723597847678,-3827.331136,0.00013654,2]
[334802803,1723597847687,-3827.331136,0.00013654,2]
[334802804,1723597847696,-3827.331136,0.00013654,2]
[334802805,1723597847706,-223.625317,0.00013654,2]
[334802806,1723597847715,-223.625317,0.00013654,2]
[334802807,1723597847725,-223.625317,0.00013654,2]
[334802808,1723597847735,-223.625317,0.00013654,2]
[334802809,1723597847744,-151.0,0.00013654,2]
[334802810,1723597847754,-151.0,0.00013654,2]
[334802811,1723597847763,-151.0,0.00013654,2]
[334802812,1723597847773,-151.0,0.00013654,2]
[334802813,1723597847783,-232.017089,0.00013654,2]
[334802814,1723597847792,-151.0,0.00013654,2]
[334802815,1723597847802,-151.0,0.00013654,2]
[334802816,1723597847811,-1203.176303,0.00013654,2]
[334802817,1723597847820,-1203.176303,0.00013654,2]
[334802818,1723597847829,-1203.176303,0.00013654,2]
[334802819,1723597847839,-1203.176303,0.00013654,2]
[334802820,1723597847848,-875.01211,0.00013654,2]
[334802821,1723597847859,-875.01211,0.00013654,2]
[334802822,1723597847870,-4664.798787,0.00013654,2]
[334802823,1723597847882,-4664.798787,0.00013654,2]
[334802824,1723597847894,-4664.798787,0.00013654,2]
[334802825,1723597847905,-4664.798787,0.00013654,2]
[334802826,1723597847916,-4664.798787,0.00013654,2]
[334802827,1723597847927,-4664.798787,0.00013654,2]
[334802828,1723597847937,-2822.793534,0.00013654,2]
[334802829,1723597847948,-2822.793534,0.00013654,2]
[334802830,1723597847957,-2822.793534,0.00013654,2]
[334802831,1723597847967,-2822.793534,0.00013654,2]
[334802832,1723597847980,-2822.793534,0.00013654,2]
[334802833,1723597847990,-2822.793534,0.00013654,2]
[334802834,1723597848002,-151.0,0.00013654,2]
[334802835,1723597848013,-214.094084,0.00013654,2]
[334802836,1723597848024,-151.0,0.00013654,2]
[334802837,1723597848033,-214.094084,0.00013654,2]
[334802838,1723597848043,-214.094084,0.00013654,2]
[334802839,1723597848053,-151.0,0.00013654,2]
[334802840,1723597848062,-214.094084,0.00013654,2]
[334802841,1723597848072,-214.094084,0.00013654,2]
[334802842,1723597848082,-214.094084,0.00013654,2]
[334802843,1723597848092,-1916.02568808,0.00013654,2]
[334802844,1723597848101,-1166.242899,0.00013654,2]
[334802845,1723597848111,-1166.242899,0.00013654,2]
[334802846,1723597848121,-1166.242899,0.00013654,2]
[334802847,1723597848131,-1166.242899,0.00013654,2]
[334802848,1723597848140,-1166.242899,0.00013654,2]
[334802849,1723597848150,-1166.242899,0.00013654,2]
[334802850,1723597848159,-151.0,0.00013654,2]
[334802851,1723597848168,-151.0,0.00013654,2]
[334802852,1723597848177,-212.607952,0.00013654,2]
[334802853,1723597848186,-9781.81,0.00013654,2]
[334802854,1723597848195,-8516.16179392,0.00013654,2]
[334802865,1723598788420,686.10051748,0.00025,120]
[334803016,1723599074184,198.42,0.000178,120]
[334803033,1723599787527,5324.10913299,4.42e-06,2]
[334803034,1723599788069,5324.10913299,6.99e-06,2]
[334803035,1723599788400,5324.10913299,9.83e-06,2]
[334803036,1723599788747,5324.10913299,1.223e-05,2]
[334803037,1723599789054,5324.10913299,1.454e-05,2]
[334803038,1723599789397,5324.10913299,1.734e-05,2]
[334803039,1723599789730,3427.86576567,1.944e-05,2]
[334803040,1723599877733,203.68584697,1.944e-05,2]
[334803131,1723600238546,-151.96,0.00012507,2]
[334803132,1723600238556,-520.0,0.00012507,2]
[334803133,1723600238565,-1413.0,0.00012507,2]
[334803134,1723600238574,-212.334,0.00012507,2]
[334803135,1723600238583,-238.728,0.00012507,2]
[334803136,1723600238593,-168.983475,0.00012692,2]
[334803137,1723600238602,-168.983475,0.00012824,2]
[334803138,1723600238611,-168.983475,0.00012957,2]
[334803139,1723600238621,-500.0,0.00012986,2]
[334803140,1723600238631,-168.983475,0.00013089,2]
[334803141,1723600238640,-294.7678211,0.000131,2]
[334803142,1723600238650,-153.0,0.000131,2]
[334803143,1723600238659,-308.0963801,0.000131,2]
[334803144,1723600238669,-294.7678211,0.000131,2]
[334803145,1723600238679,-267.9801969,0.000131,2]
[334803146,1723600238688,-294.7678211,0.000131,2]
[334803147,1723600238697,-294.7678211,0.000131,2]
[334803148,1723600238707,-294.7678211,0.000131,2]
[334803149,1723600238716,-153.0,0.000131,2]
[334803150,1723600238725,-267.9801969,0.000131,2]
[334803151,1723600238735,-168.983475,0.00013221,2]
[334803152,1723600238744,-466.59409372,0.00013347,2]
[334803153,1723600238753,-168.983475,0.00013354,2]
[334803154,1723600238764,-169.61568735,0.00013532,2]
[334803155,1723600238774,-3275.89472918,0.00013578,2]
[334803252,1723600246348,-150.078,0.00012507,2]
[334803254,1723600246357,-294.7678211,0.000131,2]
[334803256,1723600246369,-117.69275679,0.00013578,2]
[334803260,1723600272421,158.00928581,5e-05,2]
[334803262,1723600315377,212.28518869,0.00025,60]
[334803264,1723600347785,1397.42779904,5e-05,2]
[334803267,1723600694615,154.86600288,6.061e-05,2]
[334803268,1723600744740,71021.0,0.00025,60]
[334803274,1723601208369,6157.87933,0.00025,60]
[334803369,1723601438523,-500.0,0.00012986,2]
[334803371,1723601438534,-4753.975743,0.00013,2]
[334803404,1723601438846,-275.42395884,0.00013,2]
[334803406,1723601438856,-2358.63480739,0.00013573,2]
[334803408,1723601438866,-250.72759425,0.00013586,2]
[334803410,1723601438875,-14467.46415371,0.00013587,2]
[334803412,1723601438885,-1038.03045851,0.00013588,2]
[334803414,1723601438894,-15400.00181319,0.00013598,2]
[334803416,1723601438904,-330.0,0.000136,2]
[334803418,1723601438913,-155.0,0.0001365,2]
[334803420,1723601438922,-177.08335211,0.00013653,2]
[334803422,1723601438932,-5989.19475674,0.00013653,2]
[334803424,1723601438941,-213.495,0.0001367,2]
[334803426,1723601438950,-217.274,0.0001367,2]
[334803428,1723601438959,-150.0,0.0001367,2]
[334803430,1723601438969,-520.0,0.0001367,2]
[334803432,1723601438979,-1413.0,0.0001367,2]
[334803434,1723601438988,-200.0,0.00013673,2]
[334803436,1723601438998,-200.0,0.00013673,2]
[334803438,1723601439007,-200.0,0.00013673,2]
[334803440,1723601439017,-312.85218925,0.00013673,2]
[334803442,1723601439026,-2660.94660475,0.00013678,2]
[334803566,1723601440440,-250.72759421,0.00013589,2]
[334803568,1723601440453,-250.72759421,0.00013592,2]
[334803570,1723601440464,-7998.54481158,0.00013678,2]
[334803879,1723601443655,-250.72759421,0.00013594,2]
[334803881,1723601443665,-3503.6162546,0.00013678,2]
[334806015,1723602293673,28000.0,0.00025,60]
[334806065,1723602638687,-200.59987483,9.999e-05,2]
[334806066,1723602638698,-108.66001591,0.00012986,2]
[334806067,1723602638711,-391.33998409,0.00012986,2]
[334806068,1723602638720,-465.07970469,0.00013313,2]
[334806069,1723602638732,-150.28145351,0.00013422,2]
[334806070,1723602638743,-250.72759421,0.00013569,2]
[334806071,1723602638753,-175.6464472,0.00013576,2]
[334806072,1723602638764,-691.02362734,0.00013577,2]
[334806073,1723602638773,-300.0,0.00013665,2]
[334806074,1723602638783,-279.15450185,0.00013666,2]
[334806075,1723602638794,-24428.54967996,0.00013666,2]
[334806228,1723602640742,-101445.86759942,0.00013666,2]
[334806230,1723602640756,-643.4081973,0.00013666,2]
[334811101,1723602719942,1008.0,0.00025,60]
[334811687,1723603840867,-300.31255533,9.32e-05,2]
[334811689,1723603840877,-300.31255533,9.414e-05,2]
[334811691,1723603840888,-154.80989456,9.999e-05,2]
[334811693,1723603840898,-154.80736331,9.999e-05,2]
[334811696,1723603840910,-154.86965717,9.999e-05,2]
[334811698,1723603840920,-154.8280935,9.999e-05,2]
[334811700,1723603840931,-154.90953897,9.999e-05,2]
[334811702,1723603840946,-443.81806405,9.999e-05,2]
[334811704,1723603840957,-500.0,0.00012986,2]
[334811707,1723603840969,-2261.52800734,0.00013553,2]
[334811709,1723603840980,-640.94499233,0.00013553,2]
[334811711,1723603840991,-640.94499231,0.00013556,2]
[334811713,1723603841001,-640.94499231,0.00013559,2]
[334811715,1723603841011,-640.94499231,0.00013562,2]
[334811717,1723603841025,-640.94499231,0.00013565,2]
[334811719,1723603841035,-154.786509,0.000136,2]
[334811722,1723603841046,-10000.0,0.000136,2]
[334811724,1723603841057,-83506.16039929,0.00013646,2]
[334812024,1723603844128,-11239.5430005,0.00013646,2]
[334823608,1723604048398,3035.0,0.00025,60]
[334823609,1723604090034,300.0,0.00025,60]
[334823610,1723604136714,408.0,0.00025,60]
[334823612,1723604656953,336.59268156,0.00025,60]
[334823805,1723605040091,-273.37336231,8.688e-05,2]
[334823807,1723605040103,-273.37336231,8.776e-05,2]
[334823808,1723605040113,-155.41151627,9.999e-05,2]
[334823809,1723605040123,-443.81806405,9.999e-05,2]
[334823810,1723605040134,-937.28177344,9.999e-05,2]
[334823811,1723605040143,-155.47114743,9.999e-05,2]
[334823812,1723605040154,-300.0,0.00012499,2]
[334823813,1723605040164,-3000.0,0.000125,2]
[334823814,1723605040176,-500.0,0.00012986,2]
[334823815,1723605040187,-3003.42446477,0.00013,2]
[334823816,1723605040198,-319.0,0.00013206,2]
[334823817,1723605040210,-319.0,0.00013206,2]
[334823818,1723605040221,-319.0,0.00013206,2]
[334823819,1723605040233,-319.0,0.00013206,2]
[334823820,1723605040245,-319.0,0.00013206,2]
[334823821,1723605040254,-319.0,0.00013206,2]
[334823822,1723605040264,-319.0,0.00013206,2]
[334823823,1723605040274,-319.0,0.00013206,2]
[334823824,1723605040282,-319.0,0.00013206,2]
[334823825,1723605040291,-319.0,0.00013206,2]
[334823826,1723605040301,-319.0,0.00013206,2]
[334823827,1723605040310,-319.0,0.00013206,2]
[334823828,1723605040323,-319.0,0.00013206,2]
[334823829,1723605040335,-319.0,0.00013206,2]
[334823830,1723605040345,-153.0,0.00013209,2]
[334823831,1723605040355,-153.0,0.00013209,2]
[334823833,1723605040364,-153.0,0.00013209,2]
[334823835,1723605040375,-153.0,0.00013209,2]
[334823837,1723605040385,-153.0,0.00013209,2]
[334823839,1723605040396,-153.0,0.00013209,2]
[334823841,1723605040410,-153.0,0.00013209,2]
[334823843,1723605040424,-153.0,0.00013209,2]
[334823846,1723605040434,-153.0,0.00013209,2]
[334823848,1723605040444,-153.0,0.00013209,2]
[334823849,1723605040453,-153.0,0.00013209,2]
[334823851,1723605040462,-153.0,0.00013209,2]
[334823853,1723605040471,-153.0,0.00013209,2]
[334823856,1723605040489,-153.0,0.00013209,2]
[334823859,1723605040501,-319.0,0.00013224,2]
[334823861,1723605040511,-319.0,0.00013224,2]
[334823863,1723605040521,-319.0,0.00013224,2]
[334823865,1723605040531,-319.0,0.00013224,2]
[334823867,1723605040541,-319.0,0.00013224,2]
[334823869,1723605040551,-319.0,0.00013224,2]
[334823871,1723605040562,-319.0,0.00013224,2]
[334823873,1723605040572,-319.0,0.00013224,2]
[334823875,1723605040582,-319.0,0.00013224,2]
[334823877,1723605040593,-319.0,0.00013224,2]
[334823879,1723605040603,-319.0,0.00013224,2]
[334823881,1723605040612,-319.0,0.00013224,2]
[334823883,1723605040622,-319.0,0.00013224,2]
[334823885,1723605040632,-319.0,0.00013224,2]
[334823887,1723605040642,-153.0,0.00013227,2]
[334823889,1723605040652,-153.0,0.00013227,2]
[334823891,1723605040665,-153.0,0.00013227,2]
[334823893,1723605040674,-153.0,0.00013227,2]
[334823895,1723605040684,-153.0,0.00013227,2]
[334823897,1723605040693,-153.0,0.00013227,2]
[334823899,1723605040702,-153.0,0.00013227,2]
[334823901,1723605040712,-153.0,0.00013227,2]
[334823903,1723605040722,-153.0,0.00013227,2]
[334823906,1723605040732,-153.0,0.00013227,2]
[334823908,1723605040742,-153.0,0.00013227,2]
[334823910,1723605040752,-153.0,0.00013227,2]
[334823912,1723605040761,-153.0,0.00013227,2]
[334823914,1723605040770,-153.0,0.00013227,2]
[334823916,1723605040780,-319.0,0.00013244,2]
[334823918,1723605040790,-319.0,0.00013244,2]
[334823920,1723605040799,-319.0,0.00013244,2]
[334823922,1723605040808,-319.0,0.00013244,2]
[334823924,1723605040818,-319.0,0.00013244,2]
[334823926,1723605040828,-319.0,0.00013244,2]
[334823928,1723605040838,-319.0,0.00013244,2]
[334823930,1723605040847,-319.0,0.00013244,2]
[334823932,1723605040858,-319.0,0.00013244,2]
[334823934,1723605040868,-319.0,0.00013244,2]
[334823936,1723605040877,-319.0,0.00013244,2]
[334823938,1723605040887,-319.0,0.00013244,2]
[334823940,1723605040898,-319.0,0.00013244,2]
[334823942,1723605040908,-319.0,0.00013244,2]
[334823944,1723605040919,-153.0,0.00013247,2]
[334823946,1723605040929,-153.0,0.00013247,2]
[334823948,1723605040940,-153.0,0.00013247,2]
[334823951,1723605040953,-153.0,0.00013247,2]
[334823953,1723605040963,-153.0,0.00013247,2]
[334823955,1723605040975,-153.0,0.00013247,2]
[334823957,1723605040986,-153.0,0.00013247,2]
[334823959,1723605040998,-153.0,0.00013247,2]
[334823962,1723605041010,-153.0,0.00013247,2]
[334823964,1723605041020,-153.0,0.00013247,2]
[334823966,1723605041030,-153.0,0.00013247,2]
[334823968,1723605041039,-153.0,0.00013247,2]
[334823970,1723605041049,-153.0,0.00013247,2]
[334823972,1723605041059,-153.0,0.00013247,2]
[334823974,1723605041069,-319.0,0.00013262,2]
[334823976,1723605041079,-319.0,0.00013262,2]
[334823978,1723605041089,-319.0,0.00013262,2]
[334823980,1723605041098,-319.0,0.00013262,2]
[334823982,1723605041108,-319.0,0.00013262,2]
[334823983,1723605041117,-319.0,0.00013262,2]
[334823985,1723605041127,-319.0,0.00013262,2]
[334823988,1723605041137,-319.0,0.00013262,2]
[334823990,1723605041147,-319.0,0.00013262,2]
[334823992,1723605041156,-319.0,0.00013262,2]
[334823994,1723605041165,-319.0,0.00013262,2]
[334823996,1723605041177,-319.0,0.00013262,2]
[334823998,1723605041188,-319.0,0.00013262,2]
[334824000,1723605041198,-319.0,0.00013262,2]
[334824002,1723605041209,-153.0,0.00013265,2]
[334824004,1723605041220,-153.0,0.00013265,2]
[334824007,1723605041232,-153.0,0.00013265,2]
[334824009,1723605041243,-153.0,0.00013265,2]
[334824011,1723605041252,-153.0,0.00013265,2]
[334824013,1723605041262,-153.0,0.00013265,2]
[334824015,1723605041275,-153.0,0.00013265,2]
[334824017,1723605041284,-153.0,0.00013265,2]
[334824019,1723605041294,-153.0,0.00013265,2]
[334824021,1723605041304,-153.0,0.00013265,2]
[334824023,1723605041316,-153.0,0.00013265,2]
[334824025,1723605041330,-153.0,0.00013265,2]
[334824027,1723605041341,-153.0,0.00013265,2]
[334824029,1723605041351,-153.0,0.00013265,2]
[334824032,1723605041363,-471.71184718,0.0001328,2]
[334824034,1723605041375,-153.0,0.000133,2]
[334824036,1723605041388,-269.742086,0.000133,2]
[334824038,1723605041399,-438.63388,0.000133,2]
[334824040,1723605041411,-535.9603938,0.000133,2]
[334824043,1723605041422,-153.0,0.000133,2]
[334824045,1723605041434,-294.7678211,0.000133,2]
[334824047,1723605041445,-267.9801969,0.000133,2]
[334824049,1723605041456,-153.0,0.000133,2]
[334824051,1723605041466,-267.9801969,0.000133,2]
[334824053,1723605041476,-267.9801969,0.000133,2]
[334824055,1723605041486,-294.7678211,0.000133,2]
[334824057,1723605041497,-153.0,0.000133,2]
[334824059,1723605041506,-519.6282897,0.000133,2]
[334824061,1723605041516,-153.0,0.000133,2]
[334824063,1723605041525,-2261.52800734,0.00013455,2]
[334824065,1723605041535,-640.94499233,0.00013546,2]
[334824067,1723605041545,-640.94499231,0.00013548,2]
[334824069,1723605041556,-640.94499231,0.00013551,2]
[334824072,1723605041566,-640.94499231,0.00013553,2]
[334824073,1723605041576,-640.94499231,0.00013555,2]
[334824075,1723605041586,-267.9801969,0.000136,2]
[334824078,1723605041596,-267.9801969,0.000136,2]
[334824080,1723605041606,-267.9801969,0.000136,2]
[334824082,1723605041616,-153.0,0.000136,2]
[334824084,1723605041627,-306.0,0.000136,2]
[334824086,1723605041637,-368.5308972,0.000136,2]
[334824088,1723605041647,-267.9801969,0.000136,2]
[334824090,1723605041658,-288.4418541,0.000136,2]
[334824092,1723605041669,-308.1506605,0.000136,2]
[334824094,1723605041679,-267.9801969,0.000136,2]
[334824097,1723605041691,-267.9801969,0.000136,2]
[334824099,1723605041703,-267.9801969,0.000136,2]
[334824101,1723605041715,-306.0,0.000136,2]
[334824103,1723605041726,-153.0,0.000136,2]
[334824105,1723605041737,-535.9603938,0.000136,2]
[334824107,1723605041748,-153.0,0.000136,2]
[334824110,1723605041759,-414.3166971,0.000136,2]
[334824112,1723605041770,-153.0,0.000136,2]
[334824114,1723605041780,-267.9801969,0.000136,2]
[334824116,1723605041791,-589.5356422,0.000136,2]
[334824118,1723605041801,-267.9801969,0.000136,2]
[334824121,1723605041813,-153.0,0.000136,2]
[334824123,1723605041825,-154.2312945,0.000136,2]
[334824125,1723605041834,-294.7678211,0.000136,2]
[334824127,1723605041844,-362.0758345,0.000136,2]
[334824129,1723605041853,-267.9801969,0.000136,2]
[334824131,1723605041863,-207.3387286,0.000136,2]
[334824133,1723605041872,-153.0,0.000136,2]
[334824135,1723605041881,-267.9801969,0.000136,2]
[334824137,1723605041891,-297.9394825,0.000136,2]
[334824139,1723605041903,-153.0,0.000136,2]
[334824141,1723605041912,-268.0002184,0.000136,2]
[334824143,1723605041922,-294.7678211,0.000136,2]
[334824145,1723605041931,-153.0,0.000136,2]
[334824147,1723605041940,-268.0002184,0.000136,2]
[334824149,1723605041950,-294.7678211,0.000136,2]
[334824152,1723605041960,-154.141218,0.000136,2]
[334824154,1723605041969,-268.0002184,0.000136,2]
[334824156,1723605041979,-153.0,0.000136,2]
[334824158,1723605041989,-408.7876783,0.000136,2]
[334824160,1723605041998,-535.1047623,0.000136,2]
[334824162,1723605042008,-454.3180478,0.000136,2]
[334824164,1723605042017,-294.7678211,0.000136,2]
[334824166,1723605042027,-336.64263509,0.000136,2]
[334824168,1723605042036,-68112.6624675,0.00013635,2]
[334824170,1723605042046,-1946.92,0.00013642,2]
[334824172,1723605042055,-1946.92,0.00013642,2]
[334824174,1723605042067,-1868.01555268,0.00013644,2]
[334824176,1723605042077,-26951.68673441,0.00013644,2]
[334824301,1723605043245,-944.26897062,0.00013644,2]
[334832580,1723606238645,-273.37336231,8.688e-05,2]
[334832582,1723606238655,-273.37336231,8.776e-05,2]
[334832584,1723606238665,-300.0,9.998e-05,2]
[334832586,1723606238675,-302.05319707,9.999e-05,2]
[334832588,1723606238684,-377.08017831,9.999e-05,2]
[334832761,1723606240372,-436.87607017,9.999e-05,2]
[334832763,1723606240382,-602.73771875,9.999e-05,2]
[334832766,1723606240393,-535.58721443,9.999e-05,2]
[334832768,1723606240403,-225.39924029,9.999e-05,2]
[334832770,1723606240413,-302.0,0.00010998,2]
[334832772,1723606240422,-153.0,0.00012921,2]
[334832774,1723606240432,-153.0,0.00012921,2]
[334832776,1723606240443,-153.0,0.00012921,2]
[334832778,1723606240454,-153.0,0.00012921,2]
[334832780,1723606240464,-153.0,0.00012921,2]
[334832782,1723606240474,-153.0,0.00012921,2]
[334832784,1723606240484,-153.0,0.00012921,2]
[334832786,1723606240495,-153.0,0.00012921,2]
[334832788,1723606240505,-153.0,0.00012921,2]
[334832790,1723606240516,-153.0,0.00012921,2]
[334832792,1723606240525,-153.0,0.00012921,2]
[334832794,1723606240535,-153.0,0.00012921,2]
[334832797,1723606240547,-153.0,0.00012921,2]
[334832799,1723606240559,-153.0,0.00012923,2]
[334832801,1723606240568,-153.0,0.00012923,2]
[334832803,1723606240580,-153.0,0.00012923,2]
[334832805,1723606240590,-153.0,0.00012923,2]
[334832825,1723606240763,-153.0,0.00012923,2]
[334832827,1723606240773,-153.0,0.00012923,2]
[334832829,1723606240784,-153.0,0.00012939,2]
[334832831,1723606240793,-153.0,0.00012939,2]
[334832833,1723606240803,-153.0,0.00012939,2]
[334832835,1723606240812,-153.0,0.00012939,2]
[334832837,1723606240825,-153.0,0.00012939,2]
[334832839,1723606240835,-153.0,0.00012939,2]
[334832841,1723606240848,-153.0,0.00012939,2]
[334832843,1723606240859,-153.0,0.00012939,2]
[334832846,1723606240869,-153.0,0.00012941,2]
[334832848,1723606240879,-153.0,0.00012941,2]
[334832850,1723606240890,-500.0,0.00012986,2]
[334832852,1723606240901,-600.0,0.0001315,2]
[334832854,1723606240911,-207.3931713,0.000132,2]
[334832856,1723606240922,-600.0,0.00013287,2]
[334832859,1723606240933,-294.8038627,0.000133,2]
[334832861,1723606240945,-294.8038627,0.000133,2]
[334832863,1723606240958,-153.0,0.000133,2]
[334832865,1723606240968,-306.0,0.000133,2]
[334832868,1723606240980,-535.9804153,0.000133,2]
[334832870,1723606240991,-630.0760529,0.000133,2]
[334832872,1723606241000,-294.8038627,0.000133,2]
[334832874,1723606241009,-153.0,0.000133,2]
[334832876,1723606241018,-153.0,0.000133,2]
[334832878,1723606241028,-153.0,0.000133,2]
[334832880,1723606241038,-306.0,0.000133,2]
[334832882,1723606241047,-268.0002184,0.000133,2]
[334832884,1723606241058,-207.3044688,0.000133,2]
[334832887,1723606241072,-528.8638797,0.000133,2]
[334832889,1723606241082,-153.0,0.000133,2]
[334832891,1723606241092,-294.8038627,0.000133,2]
[334832893,1723606241102,-153.0,0.000133,2]
[334832895,1723606241111,-268.0002184,0.000133,2]
[334832897,1723606241120,-268.0002184,0.000133,2]
[334832899,1723606241129,-207.3665351,0.000133,2]
[334832901,1723606241139,-535.9603938,0.000133,2]
[334832903,1723606241149,-207.3665351,0.000133,2]
[334832905,1723606241158,-268.0002184,0.000133,2]
[334832907,1723606241167,-207.3665351,0.000133,2]
[334832909,1723606241177,-589.0813895,0.000133,2]
[334832911,1723606241186,-207.3931713,0.000133,2]
[334832913,1723606241195,-294.7678211,0.000133,2]
[334832915,1723606241205,-589.0861377,0.000133,2]
[334832917,1723606241214,-2261.52800734,0.000134,2]
[334832919,1723606241224,-5264.9922928,0.000134,2]
[334832921,1723606241234,-600.0,0.00013424,2]
[334832923,1723606241243,-589.5356422,0.000135,2]
[334832925,1723606241252,-306.0,0.000135,2]
[334832927,1723606241262,-306.0,0.000135,2]
[334832929,1723606241271,-306.0,0.000135,2]
[334832932,1723606241282,-234.8303867,0.000135,2]
[334832934,1723606241291,-536.0004368,0.000135,2]
[334832935,1723606241300,-153.0,0.000135,2]
[334832938,1723606241310,-153.0,0.000135,2]
[334832940,1723606241319,-640.94499233,0.00013544,2]
[334832942,1723606241336,-640.94499231,0.00013544,2]
[334832943,1723606241345,-640.94499231,0.00013545,2]
[334832945,1723606241354,-640.94499231,0.00013545,2]
[334832947,1723606241363,-640.94499231,0.00013545,2]
[334832949,1723606241373,-601.62691923,0.00013561,2]
[334832951,1723606241383,-30260.44825705,0.0001359,2]
[334832953,1723606241392,-294.7678211,0.000136,2]
[334832955,1723606241402,-589.5356422,0.000136,2]
[334832958,1723606241411,-150.112233,0.000136,2]
[334832959,1723606241420,-1946.92,0.00013633,2]
[334832961,1723606241428,-1946.92,0.00013633,2]
[334832963,1723606241437,-1946.92,0.00013633,2]
[334832965,1723606241447,-1946.92,0.00013633,2]
[334832967,1723606241456,-1946.92,0.00013633,2]
[334832969,1723606241466,-1946.92,0.00013633,2]
[334832971,1723606241475,-1946.92,0.00013634,2]
[334832973,1723606241484,-1946.92,0.00013634,2]
[334832975,1723606241493,-51766.68700314,0.00013634,2]
[334833501,1723606246436,-273.37336231,9.9e-05,2]
[334833502,1723606246447,-589.5356422,0.000132,2]
[334833503,1723606246459,-501.92651464,0.00013634,2]
[334833504,1723606246608,-562.98055713,0.00013634,2]
[334833505,1723606246620,-526.08072875,0.00013634,2]
[334837492,1723607432175,-273.37336231,8.688e-05,2]
[334837493,1723607432188,-273.37336231,8.776e-05,2]
[334837494,1723607432199,-422.1184028,9.999e-05,2]
[334837495,1723607432210,-154.77557542,9.999e-05,2]
[334837496,1723607432221,-410.6675686,0.0001189,2]
[334837497,1723607432232,-162.232452,0.00012104,2]
[334837498,1723607432242,-162.232452,0.00012153,2]
[334837499,1723607432252,-162.232452,0.00012201,2]
[334837500,1723607432262,-162.232452,0.0001225,2]
[334837502,1723607432272,-162.232452,0.00012298,2]
[334837504,1723607432284,-2.97319173,0.00012347,2]
[334837506,1723607432296,-159.25926027,0.00012347,2]